bitfinex/quotes_ETHUSD_20241217
["timestamp","ask_amount","ask_price","bid_price","bid_amount"]
[1734461595396,0.68074344,3928.4,3928.3,2.36736568]
[1734461595933,0.93074344,3928.4,3928.3,2.36736568]
[1734461596135,0.69850678,3928.4,3928.3,2.36736568]
[1734461596334,0.93087787,3928.4,3928.3,2.36736568]
[1734461596641,1.12787131,3928.4,3928.3,2.36736568]
[1734461596935,1.88677131,3928.4,3928.3,2.36736568]
[1734461599538,1.42216447,3928.4,3928.3,2.36736568]
[1734461599839,3.17616867,3928.4,3928.3,2.36736568]
[1734461600011,2.94391006,3928.4,3928.3,2.36736568]
[1734461600220,3.17616551,3928.4,3928.3,2.36736568]
[1734461600547,4.21522199,3928.4,3928.3,2.36736568]
[1734461600849,5.2541282,3928.4,3928.3,2.36736568]
[1734461601050,7.49446892,3928.4,3928.3,2.36736568]
[1734461601413,5.7747971,3928.4,3928.3,2.36736568]
[1734461601614,3.17616551,3928.4,3928.3,2.36736568]
[1734461601848,5.77503576,3928.4,3928.3,2.36736568]
[1734461602149,3.17594005,3928.4,3928.3,2.36736568]
[1734461602321,6.97574104,3928.4,3928.3,2.36736568]
[1734461602732,5.25606922,3928.4,3928.3,2.36736568]
[1734461603124,4.89561187,3928.4,3928.3,2.36736568]
[1734461603823,5.77489437,3928.4,3928.3,2.36736568]
[1734461604531,4.89561187,3928.4,3928.3,2.36736568]
[1734461605054,6.97582598,3928.4,3928.3,2.36736568]
[1734461605223,3.17594005,3928.4,3928.3,2.36736568]
[1734461605423,0.21627103,3927.6,3927.5,2.39407058]
[1734461605777,1.22517103,3927.6,3927.5,2.39407058]
[1734461607223,4.33573491,3927.6,3927.5,2.39407058]
[1734461607558,7.18417525,3927.6,3927.5,2.39407058]
[1734461607775,7.18417525,3927.6,3927.5,1.56077058]
[1734461607943,7.34400171,3927.6,3927.5,0.72747058]
[1734461608458,7.34400171,3927.6,3923.1,0.8126]
[1734461608459,1.29877103,3925.2,3923.1,0.8126]
[1734461608628,1.29877103,3925.2,3923.7,0.12866907]
[1734461609029,0.46627103,3924.5,3923.1,0.12481181]
[1734461609232,0.46627103,3923.7,3922.8,2.55429996]
[1734461609663,1.29877103,3923.7,3922.8,2.55429996]
[1734461610580,0.46627103,3924.2,3923.6,3.59295457]
[1734461611980,0.46627103,3924.9,3924.7,0.8157]
[1734461612498,0.46627103,3924.9,3924.8,0.02687945]
[1734461612662,0.25,3924.9,3924.8,0.02687945]
[1734461612859,0.46627103,3924.9,3924.7,0.8157]
[1734461613067,0.46627103,3924.9,3924.8,0.46204371]
[1734461613584,0.46627103,3924.9,3924.0,0.02547553]
[1734461613585,0.25,3923.7,3922.1,0.1623055]
[1734461613746,0.46401588,3922.9,3922.1,0.1623055]
[1734461614284,0.46401588,3922.9,3922.8,2.80972996]
[1734461614839,1.70424901,3924.8,3922.8,3.62542996]
[1734461614840,0.21627103,3923.0,3922.8,3.62542996]
[1734461615044,0.21627103,3923.0,3922.9,2.98621234]
[1734461616801,0.21627103,3923.0,3922.8,2.80972996]
[1734461618113,0.21627103,3923.2,3922.8,2.80972996]
[1734461618298,0.21627103,3923.2,3922.9,0.57959423]
[1734461619419,0.21627103,3923.2,3922.8,2.80972996]
[1734461619582,0.21627103,3923.0,3922.8,2.80972996]
[1734461622118,0.7887,3924.3,3922.8,3.23895978]
[1734461622119,0.21627103,3923.5,3922.8,3.23895978]
[1734461622327,0.21627103,3923.7,3923.2,2.98621234]
[1734461622616,6.57183435,3926.2,3923.2,2.98621234]
[1734461622617,0.21627103,3923.8,3923.3,1.13980478]
[1734461622832,0.21627103,3923.6,3923.3,1.13980478]
[1734461623021,0.21627103,3923.8,3923.3,1.13980478]
[1734461623220,0.21627103,3924.0,3923.7,2.98621234]
[1734461623422,1.03858201,3926.5,3923.7,2.98621234]
[1734461623423,0.21627103,3923.8,3923.7,2.98621234]
[1734461623596,0.21627103,3923.8,3923.7,3.33983357]
[1734461623915,0.7887,3925.4,3923.8,0.55]
[1734461623916,0.21627103,3924.2,3923.8,0.55]
[1734461624120,0.21627103,3924.2,3924.1,2.98621234]
[1734461624332,2.98621234,3926.7,3924.1,2.98621234]
[1734461624333,0.21627103,3924.5,3924.1,2.98621234]
[1734461624486,0.21627103,3924.5,3924.2,0.55]
[1734461624683,0.21627103,3924.5,3924.3,0.35362123]
[1734461627902,0.25,3926.6,3923.9,0.8157]
[1734461627903,0.21627103,3924.2,3923.9,0.8157]
[1734461628117,0.21627103,3923.5,3923.0,0.8295]
[1734461628320,0.21627103,3923.5,3922.0,2.61473382]
[1734461628321,0.21627103,3923.5,3922.3,0.8295]
[1734461628636,0.8297,3923.6,3922.0,2.58100485]
[1734461628637,0.19017103,3922.9,3922.0,2.58100485]
[1734461628839,0.19017103,3922.2,3922.0,2.58100485]
[1734461629161,0.19017103,3922.2,3922.1,0.43663654]
[1734461629920,1.01987103,3922.2,3922.1,0.1623055]
[1734461632032,3.01987103,3922.2,3922.1,0.1623055]
[1734461632432,1.70151633,3922.2,3922.1,0.1623055]
[1734461634106,1.62945459,3922.2,3922.1,0.1623055]
[1734461638663,1.52638893,3922.2,3922.1,0.1623055]
[1734461638850,1.018698,3924.8,3922.3,0.8281]
[1734461638851,0.03186112,3924.6,3922.3,0.8281]
[1734461639062,0.46160666,3924.5,3923.2,3.24549153]
[1734461639274,0.46160395,3924.5,3922.7,3.0]
[1734461639460,0.761,3924.3,3922.7,3.0]
[1734461639633,0.761,3924.3,3922.3,0.8281]
[1734461639634,0.26265918,3924.2,3922.3,0.8281]
[1734461639992,0.46159809,3924.1,3922.4,3.24549153]
[1734461640148,0.46159809,3924.0,3922.5,0.47554217]
[1734461640507,0.5,3925.0,3922.5,0.47554217]
[1734461640508,1.311,3923.8,3922.5,0.47554217]
[1734461640784,0.55,3923.6,3922.2,0.68183019]
[1734461640929,0.55,3923.4,3922.2,0.68183019]
[1734461643351,0.46177212,3923.3,3922.3,0.34251405]
[1734461643693,0.46177212,3923.2,3922.3,0.34251405]
[1734461643977,0.1311,3923.6,3922.3,0.34251405]
[1734461643978,0.46177212,3923.1,3922.3,0.34251405]
[1734461644174,0.46177212,3923.0,3922.3,0.34251405]
[1734461644478,0.1311,3923.6,3922.3,0.34251405]
[1734461644683,0.46200172,3923.5,3922.3,0.34251405]
[1734461644879,0.46200172,3923.4,3922.3,0.34251405]
[1734461645044,0.46200172,3923.3,3922.4,4.06809153]
[1734461645384,0.23100086,3923.2,3922.5,0.50924358]
[1734461645604,0.761,3923.8,3922.5,0.50924358]
[1734461645727,0.46209078,3923.7,3922.5,0.50924358]
[1734461645934,0.46209078,3923.6,3922.5,0.50924358]
[1734461646284,0.03185796,3924.6,3922.5,0.50924358]
[1734461646285,0.46209078,3923.5,3922.5,0.50924358]
[1734461646486,0.46209078,3923.5,3922.4,0.8226]
[1734461646487,0.23104539,3923.4,3922.6,0.46183748]
[1734461646773,0.58185763,3924.3,3922.6,0.46183748]
[1734461646957,0.46214931,3924.2,3922.6,0.46183748]
[1734461647170,1.01214931,3924.1,3922.6,0.46183748]
[1734461647382,0.46214931,3924.0,3922.6,0.46183748]
[1734461647550,0.46214931,3923.9,3922.7,0.42844375]
[1734461647733,0.23108065,3923.8,3922.7,0.42844375]
[1734461647944,0.46223685,3923.7,3922.7,0.42844375]
[1734461648229,0.55,3924.3,3922.9,0.8226]
[1734461648436,0.03185738,3924.7,3922.9,0.8226]
[1734461648437,0.8214,3924.0,3922.9,0.8226]
[1734461648732,0.8214,3924.0,3922.7,0.42844375]
[1734461648733,0.46232312,3923.9,3922.7,0.42844375]
[1734461648969,0.46232312,3923.8,3922.7,0.42844375]
[1734461649170,0.46232312,3923.7,3922.3,3.26104335]
[1734461649461,0.8214,3923.5,3922.3,0.34251405]
[1734461649672,1.01232312,3923.4,3922.3,0.34251405]
[1734461649880,0.46232312,3923.3,3922.3,0.34251405]
[1734461650173,0.46232312,3923.2,3922.3,0.34251405]
[1734461650337,0.23114507,3923.1,3922.3,0.34251405]
[1734461650540,0.8214,3923.5,3922.3,0.34251405]
[1734461650541,0.23114507,3923.0,3922.3,0.34251405]
[1734461650736,0.8214,3923.5,3922.3,0.34251405]
[1734461650945,1.84538645,3923.9,3922.5,0.8226]
[1734461651154,4.62e-06,3923.4,3922.5,3.8226]
[1734461651448,4.62e-06,3923.8,3923.0,2.9185293]
[1734461651648,0.8214,3924.3,3923.1,3.0]
[1734461651848,0.8214,3924.3,3923.2,0.8226]
[1734461652048,0.8214,3924.3,3923.5,3.0]
[1734461652248,0.8214,3924.8,3923.5,3.0]
[1734461652461,1.84538645,3924.8,3923.5,3.0]
[1734461652978,1.28260694,3924.7,3923.5,3.0]
[1734461653135,1.84538645,3924.8,3923.5,3.0]
[1734461653333,0.55,3924.6,3923.5,3.71860437]
[1734461653539,2.85755595,3924.6,3923.5,3.71860437]
[1734461653773,0.55,3924.6,3923.5,3.71860437]
[1734461654371,1.02398645,3924.5,3923.5,3.71860437]
[1734461654537,1.57398645,3924.6,3923.5,3.71860437]
[1734461654741,0.55,3924.4,3923.5,3.71860437]
[1734461655056,0.55,3924.5,3923.5,3.0]
[1734461655256,1.02398645,3924.0,3922.7,0.8226]
[1734461655579,1.02398645,3924.2,3923.0,3.0]
[1734461655739,0.55,3924.1,3923.0,3.0]
[1734461655939,0.55,3924.2,3923.0,3.0]
[1734461656139,0.55,3924.2,3923.1,0.56893307]
[1734461656336,2.85826503,3924.2,3923.1,0.56893307]
[1734461656538,1.05584523,3924.3,3923.1,0.56893307]
[1734461656741,1.84538645,3924.4,3923.1,0.56893307]
[1734461657181,0.8214,3924.4,3923.1,0.56893307]
[1734461657341,1.84538645,3924.4,3923.2,0.62582638]
[1734461657541,0.8214,3924.4,3923.2,0.62582638]
[1734461657880,0.8214,3924.9,3924.0,3.0]
[1734461658037,0.8214,3924.9,3924.1,0.02548033]
[1734461658241,0.8214,3924.9,3924.0,3.0]
[1734461658573,0.8214,3924.9,3924.0,3.56893307]
[1734461658784,1.84538645,3925.3,3924.0,3.56893307]
[1734461658979,0.8214,3925.3,3924.1,0.8226]
[1734461659281,1.53597967,3925.7,3924.1,0.8226]
[1734461659282,1.02398645,3925.6,3924.1,0.8226]
[1734461659495,0.8214,3925.7,3924.1,0.8226]
[1734461659496,1.84538645,3925.7,3924.1,0.8226]
[1734461659693,1.28562846,3925.6,3924.2,0.71063408]
[1734461659987,1.84538645,3925.7,3924.4,2.68933074]
[1734461660188,1.84538645,3925.7,3924.5,3.0]
[1734461660413,0.8214,3925.7,3924.5,3.0]
[1734461661058,0.8214,3925.7,3924.1,0.8226]
[1734461661260,0.85324348,3925.7,3924.1,0.8226]
[1734461661472,1.16272096,3925.7,3924.1,0.8226]
[1734461662977,0.23137594,3925.6,3924.1,0.8226]
[1734461663179,0.23137594,3925.5,3924.1,0.84807479]
[1734461663392,0.55,3925.9,3924.1,0.84807479]
[1734461663696,4.84538645,3926.1,3924.1,0.84807479]
[1734461663697,0.55,3925.7,3924.1,0.84807479]
[1734461664389,0.55,3926.0,3924.1,0.84807479]
[1734461664555,0.55,3925.8,3924.1,0.84807479]
[1734461664762,0.23131089,3925.7,3924.1,0.84807479]
[1734461664995,1.3714,3925.6,3924.1,0.8226]
[1734461665397,0.03184352,3925.5,3924.1,0.8226]
[1734461665595,1.3714,3925.6,3924.1,0.8226]
[1734461665796,0.55,3925.4,3924.1,0.8226]
[1734461666501,0.55,3925.5,3924.1,0.8226]
[1734461666863,0.55,3925.5,3924.4,0.12465013]
[1734461668801,0.55,3925.8,3924.4,0.12465013]
[1734461668978,0.55,3925.8,3924.5,0.8226]
[1734461669391,0.70117244,3925.8,3924.5,0.8226]
[1734461670105,0.0318439,3925.7,3924.5,0.8226]
[1734461671617,0.55,3925.5,3923.6,0.8327]
[1734461671772,0.55,3925.3,3923.6,0.8327]
[1734461671980,0.03185088,3925.2,3923.6,0.8327]
[1734461672179,0.55,3925.0,3923.6,0.8327]
[1734461672681,0.8007,3925.4,3923.8,0.12567557]
[1734461672682,0.55,3925.3,3923.8,0.12567557]
[1734461673295,0.55,3925.3,3923.9,0.8327]
[1734461674084,0.03184748,3925.2,3923.9,0.8327]
[1734461674696,0.55,3925.0,3923.3,0.8327]
[1734461674908,1.3507,3924.8,3923.3,0.8327]
[1734461675125,0.55,3924.6,3923.3,0.96172428]
[1734461675907,0.55,3924.4,3923.3,0.96172428]
[1734461676068,0.55,3924.6,3923.3,0.8327]
[1734461676272,0.55,3924.4,3923.3,0.8327]
[1734461676723,0.03185576,3924.6,3923.3,0.8327]
[1734461676724,0.03185577,3924.3,3923.3,0.8327]
[1734461676877,0.55,3924.6,3923.3,0.8327]
[1734461676878,0.58185577,3924.5,3923.3,0.8327]
[1734461677075,0.79356558,3924.5,3923.3,0.8327]
[1734461677382,0.76170981,3924.5,3923.3,0.8327]
[1734461678327,0.8007,3924.8,3923.3,0.8327]
[1734461678328,0.55,3924.7,3923.3,0.8327]
[1734461678730,0.55,3924.5,3923.3,0.8327]
[1734461679052,0.55,3924.7,3923.3,0.8327]
[1734461679335,0.55,3924.5,3923.3,0.8327]
[1734461679630,0.55,3924.7,3923.3,0.8327]
[1734461679930,0.55,3924.5,3923.3,0.8327]
[1734461681204,0.23179708,3924.4,3923.3,0.8327]
[1734461681408,0.55,3924.3,3923.3,0.8327]
[1734461681629,0.55,3924.5,3923.3,0.8327]
[1734461681833,0.55,3924.3,3923.3,0.8327]
[1734461682018,0.55,3924.5,3923.3,0.8327]
[1734461682222,0.55,3924.3,3923.3,0.8327]
[1734461682620,1.02398645,3925.0,3923.3,0.8327]
[1734461682812,0.80286606,3924.9,3923.3,0.8327]
[1734461683017,0.46361404,3924.8,3923.3,0.8327]
[1734461683211,0.23180674,3924.7,3923.3,0.8327]
[1734461683534,0.46361404,3924.7,3923.3,0.8327]
[1734461683831,1.85653718,3925.2,3923.3,0.8327]
[1734461683832,0.55,3925.1,3923.3,0.85818058]
[1734461684006,0.55,3924.9,3923.3,0.85818058]
[1734461684209,0.46366797,3924.8,3923.3,0.85818058]
[1734461684553,0.46366797,3924.7,3923.3,0.8327]
[1734461684696,0.03184985,3925.0,3923.3,0.8327]
[1734461684904,1.01370339,3924.9,3923.3,0.8327]
[1734461685100,0.23185227,3924.8,3923.3,0.8327]
[1734461685332,0.23185227,3924.8,3923.3,0.85817989]
[1734461685643,0.23185227,3924.8,3923.3,0.8327]
[1734461686014,0.23185227,3924.8,3923.3,0.8581799]
[1734461686211,0.23185227,3924.8,3923.3,0.8327]
[1734461687720,0.55,3924.7,3923.3,0.8327]
[1734461687920,0.55,3924.5,3923.3,0.8327]
[1734461690017,0.55,3924.5,3923.3,0.8327]
[1734461690643,0.55,3924.9,3923.3,0.8327]
[1734461690844,0.55,3924.7,3923.3,0.8327]
[1734461691051,0.55,3924.5,3923.3,0.8327]
[1734461691625,1.02398645,3925.0,3923.4,0.02548198]
[1734461691827,0.23175244,3924.9,3923.5,0.7808]
[1734461692026,0.23175244,3924.8,3923.5,0.7808]
[1734461692233,1.02398645,3925.6,3923.6,0.80627826]
[1734461692531,0.4636534,3925.5,3923.6,0.80627826]
[1734461692715,1.53597967,3926.0,3923.6,0.80627826]
[1734461692716,1.02398645,3926.0,3923.6,0.80627826]
[1734461692921,0.46370232,3925.9,3923.7,0.7808]
[1734461693119,3.33471784,3926.4,3924.5,0.7808]
[1734461693120,1.02398645,3926.4,3924.5,0.7808]
[1734461693318,0.46366142,3926.3,3924.7,0.7808]
[1734461693544,1.02398645,3926.8,3924.7,0.7808]
[1734461693743,3.14811172,3926.7,3924.7,0.7808]
[1734461693919,2.77448327,3926.6,3924.7,0.7808]
[1734461694118,0.37362845,3926.7,3924.7,0.7808]
[1734461694119,2.80632444,3926.5,3924.7,0.7808]
[1734461694332,1.85008645,3926.3,3924.7,0.7808]
[1734461694654,2.80641841,3926.2,3924.7,0.7808]
[1734461694853,3.2914234,3926.1,3924.7,0.7808]
[1734461695056,1.0455447,3926.0,3924.7,0.7808]
[1734461695258,0.55,3925.8,3924.7,0.7808]
[1734461695459,0.46370174,3925.7,3924.7,0.7808]
[1734461695621,0.55,3926.0,3924.7,0.7808]
[1734461695992,0.55,3925.8,3924.7,0.7808]
[1734461696284,0.55,3925.6,3924.7,0.7808]
[1734461696551,0.8261,3925.5,3924.2,0.7808]
[1734461696754,0.58184515,3925.4,3924.2,0.7808]
[1734461696942,0.55,3925.2,3923.4,0.7808]
[1734461697146,0.46341845,3925.3,3923.4,0.7808]
[1734461697147,0.55,3925.0,3923.4,0.7808]
[1734461697463,0.55,3925.0,3923.4,0.80627919]
[1734461697622,0.55,3925.3,3923.4,0.80627919]
[1734461697822,0.55,3925.1,3923.4,0.80627919]
[1734461698021,0.23170604,3925.0,3923.4,0.80627919]
[1734461698454,0.23170604,3925.0,3923.4,0.7808]
[1734461698959,0.55,3924.7,3923.5,0.12730326]
[1734461699281,0.55,3924.5,3923.5,0.12730326]
[1734461699447,0.55,3924.3,3923.5,0.12730326]
[1734461699631,0.55,3924.3,3923.4,0.7808]
[1734461700017,0.55,3924.5,3923.4,0.7808]
[1734461700223,0.55,3924.3,3923.4,0.7808]
[1734461700419,0.46334237,3924.2,3923.4,0.7808]
[1734461700619,0.55,3924.4,3923.4,0.7808]
[1734461700823,0.46325148,3924.3,3923.4,0.7808]
[1734461701068,0.23162568,3924.2,3923.4,0.7808]
[1734461701236,0.55,3924.4,3923.4,0.7808]
[1734461701554,0.46324347,3924.3,3923.4,0.7808]
[1734461701731,0.23162178,3924.2,3923.4,0.7808]
[1734461701936,1.57398645,3924.5,3923.4,0.7808]
[1734461702259,0.55,3924.3,3923.4,0.7808]
[1734461702660,0.23161242,3924.2,3923.4,0.7808]
[1734461704228,1.02398645,3924.6,3923.4,0.7808]
[1734461704427,0.23154358,3924.5,3923.6,0.8017]
[1734461704656,1.02398645,3925.0,3923.6,0.8017]
[1734461704826,0.46315906,3924.9,3923.7,0.02547928]
[1734461705037,1.02398645,3925.6,3923.9,0.8017]
[1734461705238,1.02398645,3925.6,3924.0,0.82717623]
[1734461705239,0.4632243,3925.5,3924.0,0.82717623]
[1734461705431,0.23161215,3925.4,3924.0,0.8017]
[1734461705770,1.05583174,3925.6,3924.0,0.8017]
[1734461705940,1.74993743,3925.5,3924.0,0.8017]
[1734461706124,0.46315512,3925.4,3924.0,0.8017]
[1734461706333,0.23157761,3925.3,3924.2,0.8017]
[1734461706647,0.55,3925.5,3924.2,0.8017]
[1734461706852,0.23156779,3925.4,3924.2,0.8017]
[1734461707563,0.23158257,3925.3,3924.2,0.8017]
[1734461707723,0.55,3925.5,3924.2,0.8017]
[1734461708064,1.02398645,3925.6,3924.2,0.8017]
[1734461708065,0.23158163,3925.4,3924.2,0.8017]
[1734461708226,1.02398645,3925.6,3924.2,0.8017]
[1734461708431,0.23157485,3925.5,3924.2,0.8017]
[1734461708830,1.53597967,3925.9,3924.2,0.82717408]
[1734461708831,1.02398645,3925.9,3924.2,0.82717408]
[1734461709027,1.51857383,3925.8,3924.3,0.8017]
[1734461709226,0.26344182,3925.7,3924.3,0.8017]
[1734461709430,1.02398645,3925.4,3924.3,0.8017]
[1734461709667,0.7607,3925.5,3924.3,0.8017]
[1734461709668,0.55,3925.2,3924.3,0.8017]
[1734461709968,0.23159928,3925.1,3924.3,0.8017]
[1734461710763,1.57398645,3925.2,3924.3,0.8017]
[1734461710930,0.23160745,3925.1,3924.3,0.8017]
[1734461712040,1.2555939,3925.1,3924.3,0.8017]
[1734461712242,0.23160745,3925.0,3924.3,0.8017]
[1734461712443,1.57398645,3925.2,3924.3,0.8017]
[1734461712629,1.51881986,3925.1,3924.3,0.8017]
[1734461712828,0.23163233,3925.0,3924.3,0.8017]
[1734461713091,1.96105306,3925.2,3924.3,0.8017]
[1734461713255,0.23162404,3925.1,3924.3,0.8017]
[1734461713671,0.23162404,3925.1,3924.4,0.02547948]
[1734461713850,1.02398645,3925.4,3924.5,0.8017]
[1734461714045,1.02398645,3925.7,3924.5,0.8017]
[1734461714260,0.23167111,3925.6,3924.5,0.8017]
[1734461714464,0.23167111,3925.7,3924.5,0.8017]
[1734461714965,1.02398645,3925.9,3924.5,0.8017]
[1734461715166,0.23166012,3925.8,3924.5,0.8017]
[1734461715875,1.02398645,3925.9,3924.5,0.8017]
[1734461716395,5.7771715,3927.2,3924.5,0.8017]
[1734461716396,1.55744004,3927.7,3925.4,0.8137]
[1734461716701,0.7607,3928.1,3925.6,0.8137]
[1734461716865,0.7607,3928.1,3925.5,0.26641186]
[1734461716866,3.22036508,3928.1,3925.8,0.7798]
[1734461717195,0.3518557,3928.0,3925.8,0.7798]
[1734461717360,0.7915,3927.9,3925.8,0.7798]
[1734461717562,0.56937486,3927.8,3925.8,0.7798]
[1734461717765,0.19568617,3927.7,3925.8,0.7798]
[1734461718070,0.03183528,3927.6,3925.8,0.7798]
[1734461718622,0.58183528,3927.6,3925.8,0.7798]
[1734461719414,0.55,3927.6,3925.8,0.7798]
[1734461719557,0.19568617,3927.7,3925.8,0.7798]
[1734461719913,3.40491975,3928.8,3925.4,0.12881553]
[1734461719914,0.7915,3928.3,3926.1,3.0]
[1734461720055,0.7915,3928.3,3926.3,0.7798]
[1734461720462,0.7915,3928.3,3926.6,0.7798]
[1734461720875,0.7915,3928.8,3926.7,0.02546108]
[1734461721201,3.62124923,3930.0,3926.7,0.02546108]
[1734461721202,0.7915,3929.3,3927.4,0.7798]
[1734461721800,0.03182013,3929.2,3927.4,0.7798]
[1734461722127,0.3007708,3929.1,3927.4,0.7798]
[1734461722290,0.03182313,3929.0,3927.4,0.7798]
[1734461722665,0.58182313,3929.0,3927.4,0.7798]
[1734461723306,0.55,3928.8,3927.4,0.7798]
[1734461723511,0.55,3928.2,3926.9,0.7798]
[1734461723697,0.55,3928.0,3926.9,0.7798]
[1734461724010,0.03183166,3927.9,3926.9,0.7798]
[1734461725017,0.03183166,3927.9,3925.1,0.02546535]
[1734461725314,0.03183166,3927.9,3924.8,0.25]
[1734461725315,0.55,3927.5,3924.5,0.7798]
[1734461725606,0.03183578,3927.4,3924.4,0.80526863]
[1734461725812,0.55,3927.2,3925.4,0.12887167]
[1734461726127,0.55,3927.2,3925.5,0.7798]
[1734461726128,0.03183638,3927.1,3925.5,0.7798]
[1734461726608,0.03183776,3927.1,3925.5,0.7798]
[1734461728274,0.3149947,3928.1,3925.7,0.7798]
[1734461728492,0.82333688,3927.8,3925.7,0.7798]
[1734461728751,0.82333688,3927.8,3925.8,0.7798]
[1734461729187,0.2300791,3927.7,3925.8,0.7798]
[1734461729391,0.58183539,3927.6,3925.8,0.7798]
[1734461729644,0.2300848,3927.5,3925.8,0.7798]
[1734461729934,0.58183659,3927.4,3925.8,0.7798]
[1734461730287,0.03183659,3927.4,3925.8,0.7798]
[1734461730969,0.0318366,3927.4,3925.8,0.7798]
[1734461731275,0.55,3927.2,3925.8,0.7798]
[1734461731451,0.55,3927.0,3925.8,0.7798]
[1734461731622,0.55,3926.8,3925.8,0.7798]
[1734461731813,0.03184085,3926.7,3925.8,0.7798]
[1734461732814,0.03184085,3926.9,3925.8,0.7798]
[1734461733118,0.23022937,3926.8,3925.8,0.7798]
[1734461733322,0.58184085,3926.7,3925.8,0.7798]
[1734461733572,0.03184085,3926.7,3925.8,0.7798]
[1734461734233,0.55,3927.0,3925.8,0.7798]
[1734461734234,0.55,3926.5,3925.8,0.7798]
[1734461734704,0.37863968,3927.1,3925.8,0.7798]
[1734461734880,0.7733,3927.7,3926.0,0.7918]
[1734461735171,1.86273818,3928.1,3926.2,0.7918]
[1734461735172,0.18915,3928.1,3926.2,0.7918]
[1734461735385,0.23050633,3928.0,3926.2,0.7918]
[1734461735670,0.18915,3928.1,3926.4,0.7918]
[1734461735819,0.03182882,3928.3,3926.4,0.7918]
[1734461736018,0.23052322,3928.2,3926.4,0.7918]
[1734461736554,0.26235793,3928.1,3926.4,0.7918]
[1734461736721,0.03182884,3928.1,3926.4,0.7918]
[1734461737070,0.03182886,3928.5,3926.4,0.7918]
[1734461737280,0.41419388,3928.4,3926.4,0.7918]
[1734461737423,0.81235341,3928.3,3926.4,0.7918]
[1734461737623,0.55,3928.1,3926.4,0.7918]
[1734461737874,0.2305586,3928.0,3926.4,0.7918]
[1734461738026,0.58183075,3927.9,3926.4,0.7918]
[1734461738220,0.23053209,3927.8,3926.4,0.7918]
[1734461738446,0.58183095,3927.7,3926.4,0.7918]
[1734461739520,0.55,3927.7,3926.4,0.7918]
[1734461739735,0.58183241,3927.6,3926.4,0.7918]
[1734461740235,0.23057916,3927.5,3926.4,0.7918]
[1734461740450,0.765,3928.3,3926.4,0.7918]
[1734461740647,0.78060267,3928.2,3926.4,0.7918]
[1734461740859,0.55,3928.0,3926.4,0.7918]
[1734461741453,0.23073532,3927.9,3926.4,0.7918]
[1734461741867,0.03182987,3927.8,3926.4,0.7918]
[1734461742173,0.23073532,3927.7,3926.4,0.7918]
[1734461742376,0.55,3928.0,3926.4,0.7918]
[1734461742579,0.03182987,3927.9,3926.4,0.7918]
[1734461742746,0.23094431,3927.9,3926.4,0.7918]
[1734461743276,0.0318299,3927.8,3926.4,0.7918]
[1734461743440,0.23094431,3927.7,3926.4,0.7918]
[1734461743641,0.55,3928.0,3926.4,0.7918]
[1734461743843,0.23119056,3927.9,3926.4,0.7918]
[1734461744480,0.23119056,3927.8,3926.4,0.7918]
[1734461744665,1.0657708,3929.1,3926.6,0.8105]
[1734461744866,0.44104676,3929.0,3926.8,0.8105]
[1734461745171,0.23131322,3928.9,3926.9,0.83595942]
[1734461745336,0.765,3929.5,3926.9,0.83595942]
[1734461745541,0.23132703,3929.4,3926.9,0.83595942]
[1734461745751,0.46593885,3929.3,3926.9,0.8105]
[1734461745990,0.23132703,3929.2,3926.9,0.8105]
[1734461746275,0.2631497,3929.1,3926.9,0.8105]
[1734461746475,0.22795502,3929.0,3926.9,0.8105]
[1734461746676,0.58182268,3928.9,3926.9,0.8105]
[1734461746843,0.03182268,3928.9,3926.9,0.8105]
[1734461747039,0.03182268,3928.9,3927.1,0.8289]
[1734461747298,0.03182268,3929.1,3927.1,0.8289]
[1734461749407,0.55,3929.2,3927.1,0.8289]
[1734461749587,0.55,3929.2,3927.2,0.02545692]
[1734461749903,0.55,3929.2,3927.3,0.8289]
[1734461750420,0.72843537,3929.2,3927.3,0.8289]
[1734461750587,0.76025613,3929.2,3927.3,0.8289]
[1734461754286,0.55,3929.0,3927.3,0.8289]
[1734461754490,1.03156458,3928.7,3927.3,0.8289]
[1734461754695,0.31611307,3928.6,3927.3,0.8289]
[1734461755209,0.03182429,3928.8,3927.3,0.8289]
[1734461755910,0.58182268,3928.9,3927.3,0.8289]
[1734461756215,1.20999995,3929.2,3927.3,0.8289]
[1734461756379,0.17843537,3929.2,3927.3,0.8289]
[1734461756583,0.21025628,3929.2,3927.3,0.8289]
[1734461756806,1.24182086,3929.2,3927.3,0.8289]
[1734461756993,0.759,3929.5,3927.5,0.8289]
[1734461756994,1.03156458,3929.5,3927.5,0.8289]
[1734461757192,1.03156458,3929.7,3927.5,0.8289]
[1734461757414,1.06338079,3929.8,3927.5,0.8289]
[1734461757728,0.03181672,3929.7,3927.7,0.8289]
[1734461758530,1.79056458,3929.5,3927.7,0.8289]
[1734461758677,1.65476036,3929.4,3927.7,0.8289]
[1734461758878,0.55,3929.2,3927.7,0.8289]
[1734461759082,0.55,3929.0,3927.7,0.8289]
[1734461759329,0.36013628,3929.4,3927.7,0.8289]
[1734461759330,1.39170086,3929.4,3927.7,0.8289]
[1734461759523,0.23121423,3929.3,3927.7,0.8289]
[1734461760103,0.23121423,3929.3,3927.8,0.85435493]
[1734461760298,1.03156458,3929.7,3927.8,0.85435493]
[1734461760629,0.23123504,3929.6,3927.8,0.85435493]
[1734461760838,0.23123504,3929.5,3927.8,0.8289]
[1734461760996,0.23123504,3929.4,3927.8,0.85435199]
[1734461761316,1.03156458,3929.8,3927.8,0.85435199]
[1734461761520,0.23132266,3929.7,3927.8,0.85435199]
[1734461762036,0.23132266,3929.6,3927.8,0.85435199]
[1734461762233,0.23132266,3929.5,3927.9,0.02545201]
[1734461762435,1.71354753,3930.3,3927.9,0.02545201]
[1734461762436,0.7662,3930.8,3928.0,3.0]
[1734461762650,0.81314665,3930.7,3928.2,0.7515]
[1734461762795,0.55,3930.5,3928.2,0.7515]
[1734461763133,0.7662,3930.8,3928.2,0.7515]
[1734461763134,1.03594193,3930.0,3928.2,0.7515]
[1734461763295,0.23133349,3929.9,3928.3,0.7515]
[1734461763647,0.23133349,3929.8,3928.4,0.7515]
[1734461763933,1.58594193,3930.3,3928.6,0.7515]